fUSD/lending_fUSD_20250404
["ID","MTS","AMOUNT","RATE_DAILY","PERIOD"]
[357152813,1743802253397,-500.0,0.00049315,120]
[357152814,1743802253407,-1678.87,0.00049315,10]
[357152815,1743802253417,-623.26723545,0.00049315,120]
[357152816,1743802253427,-500.0,0.00049315,7]
[357152817,1743802253436,-500.0,0.00049315,120]
[357152818,1743802253446,-500.0,0.00049315,120]
[357152819,1743802253456,-801.14,0.00049315,120]
[357152820,1743802253466,-500.0,0.00049315,12]
[357152821,1743802253476,-500.0,0.00049315,30]
[357152822,1743802253486,-151.0,0.00049315,14]
[357152823,1743802253496,-500.0,0.00049315,120]
[357152824,1743802253506,-500.0,0.00049315,120]
[357152825,1743802253515,-500.0,0.00049315,30]
[357152826,1743802253524,-2000.0,0.00049315,2]
[357152827,1743802253534,-500.0,0.00049315,120]
[357152828,1743802253543,-538.49,0.00049315,120]
[357152829,1743802253553,-500.0,0.00049315,120]
[357152830,1743802253563,-500.0,0.00049315,120]
[357152831,1743802253574,-2901.01,0.00049315,2]
[357152832,1743802253584,-151.0,0.00049315,14]
[357152833,1743802253594,-151.0,0.00049315,14]
[357152834,1743802253604,-500.0,0.00049315,120]
[357152835,1743802253614,-227.317871,0.00049315,14]
[357152836,1743802253623,-500.0,0.00049315,120]
[357152837,1743802253633,-551.2,0.00049315,120]
[357152838,1743802253643,-227.317871,0.00049315,14]
[357152839,1743802253652,-930.02,0.00049315,120]
[357152840,1743802253662,-200.75845683,0.00049315,120]
[357152841,1743802253672,-500.0,0.00049315,7]
[357152842,1743802253681,-634.77,0.00049315,120]
[357152843,1743802253691,-500.0,0.00049315,120]
[357152844,1743802253701,-365.1,0.00049315,14]
[357152845,1743802253711,-345.64259546,0.00049315,120]
[357152846,1743802253720,-365.1,0.00049315,14]
[357152847,1743802253730,-857.64,0.00049315,120]
[357152848,1743802253739,-500.0,0.00049315,120]
[357152849,1743802253749,-500.0,0.00049315,120]
[357152850,1743802253759,-500.0,0.00049315,120]
[357152851,1743802253768,-500.0,0.00049315,120]
[357152852,1743802253777,-290.88829129,0.00049315,120]
[357152853,1743802253787,-295.34527568,0.00049315,120]
[357152854,1743802253796,-656.24,0.00049315,120]
[357152855,1743802253806,-500.0,0.00049315,120]
[357152856,1743802253816,-500.0,0.00049315,120]
[357152857,1743802253826,-484.90035094,0.00049315,120]
[357152858,1743802253836,-500.0,0.00049315,120]
[357152859,1743802253846,-215.69180743,0.00049315,120]
[357152860,1743802253856,-442.166639,0.00049315,14]
[357152861,1743802253866,-500.0,0.00049315,120]
[357152862,1743802253876,-500.0,0.00049315,120]
[357152863,1743802253886,-442.166639,0.00049315,14]
[357152864,1743802253896,-500.0,0.00049315,10]
[357152865,1743802253906,-500.0,0.00049315,120]
[357152866,1743802254003,-500.0,0.00049315,120]
[357152867,1743802254014,-500.0,0.00049315,120]
[357152868,1743802254024,-500.0,0.00049315,120]
[357152869,1743802254033,-664.22,0.00049315,120]
[357152870,1743802254043,-500.0,0.00049315,120]
[357152871,1743802254052,-230.43948957,0.00049315,120]
[357152872,1743802254061,-500.0,0.00049315,120]
[357152873,1743802254070,-500.0,0.00049315,120]
[357152874,1743802254079,-500.0,0.00049315,120]
[357152875,1743802254089,-1644.01,0.00049315,120]
[357152876,1743802254099,-500.0,0.00049315,120]
[357152877,1743802254109,-549.7,0.00049315,120]
[357152878,1743802254119,-500.0,0.00049315,120]
[357152879,1743802254129,-169.94897184,0.00049315,120]
[357152880,1743802254139,-651.07,0.00049315,120]
[357152881,1743802254148,-1709.81,0.00049315,120]
[357152882,1743802254158,-4524.01,0.00049315,7]
[357152883,1743802254168,-500.0,0.00049315,120]
[357152884,1743802254177,-500.0,0.00049315,120]
[357152885,1743802254187,-500.0,0.00049315,120]
[357152886,1743802254197,-1087.55,0.00049315,120]
[357152887,1743802254208,-500.0,0.00049315,120]
[357152888,1743802254217,-768.62,0.00049315,120]
[357152889,1743802254226,-500.0,0.00049315,120]
[357152890,1743802254237,-895.47,0.00049315,120]
[357152891,1743802254247,-500.0,0.00049315,120]
[357152892,1743802254256,-500.0,0.00049315,120]
[357152893,1743802254265,-529.81,0.00049315,120]
[357152894,1743802254275,-500.0,0.00049315,120]
[357152895,1743802254285,-612.01822974,0.00049315,120]
[357152896,1743802254295,-878.05,0.00049315,120]
[357152897,1743802254305,-500.0,0.00049315,120]
[357152898,1743802254314,-208.66123594,0.00049315,120]
[357152899,1743802254324,-500.0,0.00049315,120]
[357152900,1743802254333,-1182.64,0.00049315,120]
[357152901,1743802254342,-500.0,0.00049315,120]
[357152902,1743802254352,-500.0,0.00049315,120]
[357152903,1743802254361,-500.0,0.00049315,120]
[357152904,1743802254370,-500.0,0.00049315,120]
[357152905,1743802254380,-500.0,0.00049315,120]
[357152906,1743802254390,-500.0,0.00049315,2]
[357152907,1743802254401,-4547.92,0.00049315,120]
[357152908,1743802254410,-500.0,0.00049315,120]
[357152909,1743802254420,-500.0,0.00049315,120]
[357152910,1743802254429,-1308.55,0.00049315,120]
[357152911,1743802254439,-500.0,0.00049315,120]
[357152912,1743802254449,-500.0,0.00049315,120]
[357152913,1743802254459,-757.51,0.00049315,120]
[357152914,1743802254469,-500.0,0.00049315,120]
[357152915,1743802254479,-1053.342937,0.00049315,14]
[357152916,1743802254489,-151.0,0.00049315,14]
[357152917,1743802254498,-500.0,0.00049315,120]
[357152918,1743802254508,-1053.342937,0.00049315,14]
[357152919,1743802254517,-500.0,0.00049315,120]
[357152920,1743802254527,-500.0,0.00049315,120]
[357152921,1743802254536,-500.0,0.00049315,120]
[357152922,1743802254547,-500.0,0.00049315,120]
[357152923,1743802254556,-500.0,0.00049315,120]
[357152924,1743802254567,-500.0,0.00049315,120]
[357152925,1743802254576,-500.0,0.00049315,2]
[357152926,1743802254586,-877.04,0.00049315,120]
[357152927,1743802254596,-500.0,0.00049315,120]
[357152928,1743802254606,-500.0,0.00049315,120]
[357152929,1743802254615,-500.0,0.00049315,120]
[357152930,1743802254624,-938.85,0.00049315,120]
[357152931,1743802254634,-500.0,0.00049315,120]
[357152932,1743802254644,-500.0,0.00049315,120]
[357152933,1743802254653,-2314.25,0.00049315,120]
[357152934,1743802254663,-500.0,0.00049315,120]
[357152935,1743802254672,-500.0,0.00049315,120]
[357152936,1743802254682,-500.0,0.00049315,120]
[357152937,1743802254691,-500.0,0.00049315,2]
[357152938,1743802254700,-1576.280015,0.00049315,14]
[357152939,1743802254710,-500.0,0.00049315,120]
[357152940,1743802254718,-500.0,0.00049315,120]
[357152941,1743802254727,-1576.280015,0.00049315,14]
[357152942,1743802254736,-500.0,0.00049315,100]
[357152943,1743802254746,-500.0,0.00049315,120]
[357152944,1743802254755,-1032.69,0.00049315,120]
[357152945,1743802254765,-500.0,0.00049315,2]
[357152946,1743802254776,-500.0,0.00049315,120]
[357152947,1743802254785,-500.0,0.00049315,120]
[357152948,1743802254794,-207.0,0.00049315,90]
[357152949,1743802254803,-207.0,0.00049315,90]
[357152950,1743802254812,-207.0,0.00049315,90]
[357152951,1743802254821,-207.0,0.00049315,90]
[357152952,1743802254830,-207.0,0.00049315,90]
[357152953,1743802254838,-207.0,0.00049315,90]
[357152954,1743802254847,-207.0,0.00049315,90]
[357152955,1743802254856,-207.0,0.00049315,90]
[357152956,1743802254865,-207.0,0.00049315,90]
[357152957,1743802254874,-207.0,0.00049315,90]
[357152958,1743802254883,-207.0,0.00049315,90]
[357152959,1743802254892,-207.0,0.00049315,90]
[357152960,1743802254901,-207.0,0.00049315,90]
[357152961,1743802254910,-207.0,0.00049315,90]
[357152962,1743802254921,-207.0,0.00049315,90]
[357152963,1743802254930,-207.0,0.00049315,90]
[357152964,1743802254939,-207.0,0.00049315,90]
[357152965,1743802254948,-207.0,0.00049315,90]
[357152966,1743802254958,-207.0,0.00049315,90]
[357152967,1743802254966,-207.0,0.00049315,90]
[357152968,1743802254975,-207.0,0.00049315,90]
[357152969,1743802254985,-207.0,0.00049315,90]
[357152970,1743802254994,-207.0,0.00049315,90]
[357152971,1743802255003,-207.0,0.00049315,90]
[357152972,1743802255013,-207.0,0.00049315,90]
[357152973,1743802255022,-207.0,0.00049315,90]
[357152974,1743802255031,-207.0,0.00049315,90]
[357152975,1743802255040,-207.0,0.00049315,90]
[357152976,1743802255050,-207.0,0.00049315,90]
[357152977,1743802255059,-207.0,0.00049315,90]
[357152978,1743802255068,-207.0,0.00049315,90]
[357152979,1743802255077,-207.0,0.00049315,90]
[357152980,1743802255087,-207.0,0.00049315,90]
[357152981,1743802255096,-207.0,0.00049315,90]
[357152982,1743802255106,-207.0,0.00049315,90]
[357152983,1743802255115,-207.0,0.00049315,90]
[357152984,1743802255124,-207.0,0.00049315,90]
[357152985,1743802255134,-207.0,0.00049315,90]
[357152986,1743802255143,-207.0,0.00049315,90]
[357152987,1743802255153,-207.0,0.00049315,90]
[357152988,1743802255162,-207.0,0.00049315,90]
[357152989,1743802255171,-207.0,0.00049315,90]
[357152990,1743802255180,-207.0,0.00049315,90]
[357152991,1743802255190,-207.0,0.00049315,90]
[357152992,1743802255201,-207.0,0.00049315,90]
[357152993,1743802255211,-207.0,0.00049315,90]
[357152994,1743802255220,-207.0,0.00049315,90]
[357152995,1743802255230,-207.0,0.00049315,90]
[357152996,1743802255241,-207.0,0.00049315,90]
[357152997,1743802255250,-207.0,0.00049315,90]
[357152998,1743802255259,-207.0,0.00049315,90]
[357152999,1743802255268,-207.0,0.00049315,90]
[357153000,1743802255279,-207.0,0.00049315,90]
[357153001,1743802255289,-207.0,0.00049315,90]
[357153002,1743802255298,-207.0,0.00049315,90]
[357153003,1743802255308,-207.0,0.00049315,90]
[357153004,1743802255317,-207.0,0.00049315,90]
[357153005,1743802255327,-207.0,0.00049315,90]
[357153006,1743802255336,-207.0,0.00049315,90]
[357153007,1743802255346,-207.0,0.00049315,90]
[357153008,1743802255355,-207.0,0.00049315,90]
[357153009,1743802255365,-207.0,0.00049315,90]
[357153010,1743802255375,-207.0,0.00049315,90]
[357153011,1743802255384,-207.0,0.00049315,90]
[357153012,1743802255393,-207.0,0.00049315,90]
[357153013,1743802255403,-207.0,0.00049315,90]
[357153014,1743802255413,-207.0,0.00049315,90]
[357153015,1743802255422,-207.0,0.00049315,90]
[357153016,1743802255431,-207.0,0.00049315,90]
[357153017,1743802255440,-207.0,0.00049315,90]
[357153018,1743802255449,-207.0,0.00049315,90]
[357153019,1743802255459,-207.0,0.00049315,90]
[357153020,1743802255468,-207.0,0.00049315,90]
[357153021,1743802255477,-207.0,0.00049315,90]
[357153022,1743802255487,-207.0,0.00049315,90]
[357153023,1743802255496,-207.0,0.00049315,90]
[357153024,1743802255505,-207.0,0.00049315,90]
[357153025,1743802255514,-207.0,0.00049315,90]
[357153026,1743802255523,-207.0,0.00049315,90]
[357153027,1743802255533,-207.0,0.00049315,90]
[357153028,1743802255542,-207.0,0.00049315,90]
[357153029,1743802255551,-207.0,0.00049315,90]
[357153030,1743802255560,-207.0,0.00049315,90]
[357153031,1743802255569,-207.0,0.00049315,90]
[357153032,1743802255578,-207.0,0.00049315,90]
[357153033,1743802255587,-207.0,0.00049315,90]
[357153034,1743802255597,-207.0,0.00049315,90]
[357153035,1743802255606,-207.0,0.00049315,90]
[357153036,1743802255615,-207.0,0.00049315,90]
[357153037,1743802255625,-207.0,0.00049315,90]
[357153038,1743802255715,-207.0,0.00049315,90]
[357153039,1743802255725,-207.0,0.00049315,90]
[357153040,1743802255735,-207.0,0.00049315,90]
[357153041,1743802255744,-207.0,0.00049315,90]
[357153042,1743802255753,-207.0,0.00049315,90]
[357153043,1743802255763,-207.0,0.00049315,90]
[357153044,1743802255771,-207.0,0.00049315,90]
[357153045,1743802255780,-298.33599333,0.00049315,20]
[357153046,1743802255958,-701.66400667,0.00049315,20]
[357153047,1743802255968,-230.0,0.00049315,90]
[357153048,1743802255977,-230.0,0.00049315,90]
[357153049,1743802255986,-230.0,0.00049315,90]
[357153050,1743802255995,-167.34,0.00049315,120]
[357153051,1743802256004,-150.0,0.00049326,7]
[357153052,1743802256014,-150.0,0.00049327,7]
[357153053,1743802256023,-475.38,0.00049347,30]
[357153054,1743802256032,-150.0,0.00049383,7]
[357153055,1743802256041,-904.97412298,0.00049392,30]
[357153056,1743802256057,-840.96,0.00049392,30]
[357153057,1743802256068,-277.57103379,0.00049392,30]
[357153058,1743802256079,-255.65246708,0.00049392,30]
[357153059,1743802256130,-630.6133071,0.00049392,30]
[357153060,1743802256143,-2090.22906905,0.00049392,30]
[357153061,1743802256155,-150.0,0.00049394,7]
[357153062,1743802256166,-236.0,0.000494,30]
[357153063,1743802256177,-373.0,0.000494,30]
[357153064,1743802256189,-756.0,0.000494,30]
[357153065,1743802256201,-150.0,0.00049406,7]
[357153066,1743802256211,-976.58888174,0.00049406,30]
[357153067,1743802256220,-150.0,0.0004941,7]
[357153068,1743802256229,-150.0,0.00049423,7]
[357153069,1743802256238,-150.0,0.00049427,7]
[357153070,1743802256248,-1000.0,0.00049452,20]
[357153071,1743802256257,-150.0,0.00049478,7]
[357153072,1743802256266,-150.0,0.00049484,7]
[357153073,1743802256277,-37.52449972,0.00049525,30]
[357153074,1743802256289,-264.50407627,0.00049525,30]
[357153075,1743802256518,-150.00399087,0.0004387,2]
[357153076,1743802256537,-354.79,0.0004387,2]
[357153077,1743802256548,-346.20600913,0.0004387,2]
[357153078,1743802256557,-240.99666577,0.0004687,2]
[357153079,1743802256568,-373.69669786,0.0004687,2]
[357153080,1743802256579,-110.30663637,0.0004687,2]
[357153081,1743802256588,-262.33336363,0.00049525,30]
[357153082,1743802256599,-2042.82806038,0.00049525,30]
[357153083,1743802256608,-593.08678717,0.00049551,30]
[357153084,1743802256619,-1049.4999999,0.00049551,30]
[357153085,1743802256631,-3357.41321293,0.00049551,30]
[357153086,1743802256640,-113.12325844,0.00049583,30]
[357153087,1743802256652,-117.41674156,0.00049583,30]
[357153088,1743802256661,-215.68901551,0.00049584,87]
[357153089,1743802256676,-522.16798449,0.00049584,87]
[357153090,1743802256685,-522.59961057,0.00049588,2]
[357153091,1743802256696,-500.0,0.00049588,120]
[357153092,1743802256705,-619.97,0.00049588,120]
[357153093,1743802256715,-619.97,0.00049588,120]
[357153094,1743802256725,-619.97,0.00049588,120]
[357153095,1743802256734,-619.97,0.00049588,120]
[357153096,1743802256743,-620.04109705,0.00049588,120]
[357153097,1743802256752,-500.0,0.00049589,16]
[357153098,1743802256761,-500.0,0.00049589,2]
[357153099,1743802256770,-389.62312432,0.00049589,120]
[357153100,1743802256779,-616.82,0.00049589,120]
[357153101,1743802256788,-288.6028606,0.00049589,7]
[357153102,1743802256797,-500.0,0.00049589,120]
[357153103,1743802256806,-737.18,0.00049589,120]
[357153104,1743802256815,-500.0,0.00049589,10]
[357153105,1743802256825,-500.0,0.00049589,120]
[357153106,1743802256834,-1713.31,0.00049589,120]
[357153107,1743802256843,-518.73,0.00049589,120]
[357153108,1743802256852,-500.0,0.00049589,120]
[357153109,1743802256861,-500.0,0.00049589,120]
[357153110,1743802256870,-598.76,0.00049589,120]
[357153111,1743802256879,-500.0,0.00049589,120]
[357153112,1743802256889,-500.0,0.00049589,120]
[357153113,1743802256899,-532.78,0.00049589,120]
[357153114,1743802256907,-747.4,0.00049589,120]
[357153115,1743802256917,-877.54,0.00049589,120]
[357153116,1743802256926,-500.0,0.00049589,120]
[357153117,1743802256935,-500.0,0.00049589,120]
[357153118,1743802256945,-500.0,0.00049589,120]
[357153119,1743802256954,-500.0,0.00049589,120]
[357153120,1743802256963,-500.0,0.00049589,120]
[357153121,1743802256973,-500.0,0.00049589,30]
[357153122,1743802256982,-500.0,0.00049589,120]
[357153123,1743802256991,-500.0,0.00049589,120]
[357153124,1743802257000,-500.0,0.00049589,120]
[357153125,1743802257010,-500.0,0.00049589,120]
[357153126,1743802257019,-500.0,0.00049589,120]
[357153127,1743802257030,-500.0,0.00049589,120]
[357153128,1743802257039,-500.0,0.00049589,120]
[357153129,1743802257048,-302.63389832,0.00049589,120]
[357153130,1743802257057,-500.0,0.00049589,120]
[357153131,1743802257066,-500.0,0.00049589,120]
[357153132,1743802257161,-503.81,0.00049589,120]
[357153133,1743802257172,-500.0,0.00049589,120]
[357153134,1743802257182,-770.99,0.00049589,120]
[357153135,1743802257192,-500.0,0.00049589,120]
[357153136,1743802257204,-728.81,0.00049589,120]
[357153137,1743802257213,-213.60649934,0.00049589,120]
[357153138,1743802257223,-500.0,0.00049589,120]
[357153139,1743802257232,-500.0,0.00049589,120]
[357153140,1743802257243,-500.0,0.00049589,120]
[357153141,1743802257253,-500.0,0.00049589,120]
[357153142,1743802257264,-318.8039107,0.00049589,120]
[357153143,1743802257274,-500.0,0.00049589,120]
[357153144,1743802257283,-545.5143485,0.00049589,120]
[357153145,1743802257292,-1678.87,0.00049589,10]
[357153146,1743802257302,-500.0,0.00049589,7]
[357153147,1743802257312,-500.0,0.00049589,120]
[357153148,1743802257321,-500.0,0.00049589,120]
[357153149,1743802257331,-801.14,0.00049589,120]
[357153150,1743802257341,-500.0,0.00049589,12]
[357153151,1743802257350,-500.0,0.00049589,30]
[357153152,1743802257359,-500.0,0.00049589,120]
[357153153,1743802257370,-500.0,0.00049589,120]
[357153154,1743802257379,-500.0,0.00049589,30]
[357153155,1743802257389,-2000.0,0.00049589,2]
[357153156,1743802257398,-500.0,0.00049589,120]
[357153157,1743802257408,-538.49,0.00049589,120]
[357153158,1743802257417,-500.0,0.00049589,120]
[357153159,1743802257426,-500.0,0.00049589,120]
[357153160,1743802257438,-2901.01,0.00049589,2]
[357153161,1743802257455,-500.0,0.00049589,120]
[357153162,1743802257464,-217.43247785,0.00049589,120]
[357153163,1743802257474,-551.2,0.00049589,120]
[357153164,1743802257484,-930.02,0.00049589,120]
[357153165,1743802257494,-500.0,0.00049589,7]
[357153166,1743802257505,-634.77,0.00049589,120]
[357153167,1743802257520,-500.0,0.00049589,120]
[357153168,1743802257531,-857.64,0.00049589,120]
[357153169,1743802257540,-500.0,0.00049589,120]
[357153170,1743802257550,-500.0,0.00049589,120]
[357153171,1743802257559,-491.12099421,0.00049589,120]
[357153172,1743802257573,-500.0,0.00049589,120]
[357153173,1743802257582,-656.24,0.00049589,120]
[357153174,1743802257591,-500.0,0.00049589,120]
[357153175,1743802257600,-500.0,0.00049589,120]
[357153176,1743802257609,-500.0,0.00049589,120]
[357153177,1743802257619,-229.38547563,0.00049589,120]
[357153178,1743802257633,-500.0,0.00049589,120]
[357153179,1743802257642,-500.0,0.00049589,10]
[357153180,1743802257652,-500.0,0.00049589,120]
[357153181,1743802257661,-500.0,0.00049589,120]
[357153182,1743802257671,-500.0,0.00049589,120]
[357153183,1743802257680,-500.0,0.00049589,120]
[357153184,1743802257689,-664.22,0.00049589,120]
[357153185,1743802257699,-500.0,0.00049589,120]
[357153186,1743802257708,-500.0,0.00049589,120]
[357153187,1743802257717,-500.0,0.00049589,120]
[357153188,1743802257726,-500.0,0.00049589,120]
[357153189,1743802257736,-1644.01,0.00049589,120]
[357153190,1743802257746,-500.0,0.00049589,120]
[357153191,1743802257755,-549.7,0.00049589,120]
[357153192,1743802257764,-500.0,0.00049589,120]
[357153193,1743802257774,-651.07,0.00049589,120]
[357153194,1743802257783,-1709.81,0.00049589,120]
[357153195,1743802257793,-4524.01,0.00049589,7]
[357153196,1743802257803,-218.3680652,0.00049589,120]
[357153197,1743802257812,-500.0,0.00049589,120]
[357153198,1743802257821,-178.07226051,0.00049589,120]
[357153199,1743802257831,-1087.55,0.00049589,120]
[357153200,1743802257840,-500.0,0.00049589,120]
[357153201,1743802257850,-768.62,0.00049589,120]
[357153202,1743802257859,-500.0,0.00049589,120]
[357153203,1743802257868,-895.47,0.00049589,120]
[357153204,1743802257878,-500.0,0.00049589,120]
[357153205,1743802257887,-500.0,0.00049589,120]
[357153206,1743802257896,-529.81,0.00049589,120]
[357153207,1743802257906,-500.0,0.00049589,120]
[357153208,1743802257915,-878.05,0.00049589,120]
[357153209,1743802257924,-500.0,0.00049589,120]
[357153210,1743802257933,-514.36626453,0.00049589,120]
[357153211,1743802257943,-1182.64,0.00049589,120]
[357153212,1743802257952,-405.58135278,0.00049589,120]
[357153213,1743802257961,-500.0,0.00049589,120]
[357153214,1743802257971,-593.91642581,0.00049589,120]
[357153215,1743802257980,-500.0,0.00049589,120]
[357153216,1743802257989,-168.03062015,0.00049589,120]
[357153217,1743802257999,-500.0,0.00049589,2]
[357153218,1743802258008,-4547.92,0.00049589,120]
[357153219,1743802258018,-500.0,0.00049589,120]
[357153220,1743802258027,-457.04382181,0.00049589,120]
[357153221,1743802258036,-1308.55,0.00049589,120]
[357153222,1743802258046,-305.56061959,0.00049589,120]
[357153223,1743802258055,-500.0,0.00049589,120]
[357153224,1743802258064,-757.51,0.00049589,120]
[357153225,1743802258074,-500.0,0.00049589,120]
[357153226,1743802258083,-500.0,0.00049589,120]
[357153227,1743802258092,-500.0,0.00049589,120]
[357153228,1743802258101,-500.0,0.00049589,120]
[357153229,1743802258110,-500.0,0.00049589,120]
[357153230,1743802258119,-500.0,0.00049589,120]
[357153231,1743802258129,-500.0,0.00049589,2]
[357153232,1743802258138,-877.04,0.00049589,120]
[357153233,1743802258147,-500.0,0.00049589,120]
[357153234,1743802258157,-500.0,0.00049589,120]
[357153235,1743802258165,-202.64240195,0.00049589,120]
[357153236,1743802258175,-938.85,0.00049589,120]
[357153237,1743802258184,-500.0,0.00049589,120]
[357153238,1743802258193,-500.0,0.00049589,120]
[357153239,1743802258207,-2314.25,0.00049589,120]
[357153240,1743802258216,-500.0,0.00049589,120]
[357153241,1743802258225,-500.0,0.00049589,120]
[357153242,1743802258235,-500.0,0.00049589,120]
[357153243,1743802258245,-500.0,0.00049589,2]
[357153244,1743802258255,-500.0,0.00049589,120]
[357153245,1743802258265,-309.97503208,0.00049589,120]
[357153246,1743802258275,-500.0,0.00049589,100]
[357153247,1743802258284,-500.0,0.00049589,120]
[357153248,1743802258294,-1032.69,0.00049589,120]
[357153249,1743802258303,-500.0,0.00049589,2]
[357153250,1743802258313,-500.0,0.00049589,120]
[357153251,1743802258322,-500.0,0.00049589,120]
[357153252,1743802258332,-1962.5427008,0.00049595,120]
[357153253,1743802258342,-151.0,0.000496,120]
[357153254,1743802258352,-151.0,0.000496,120]
[357153255,1743802258362,-151.0,0.000496,120]
[357153256,1743802258372,-212.22746,0.000496,120]
[357153257,1743802258382,-151.0,0.000496,120]
[357153258,1743802258391,-151.0,0.000496,120]
[357153259,1743802258401,-227.317871,0.000496,120]
[357153260,1743802258411,-227.317871,0.000496,120]
[357153261,1743802258422,-365.1,0.000496,120]
[357153262,1743802258432,-365.1,0.000496,120]
[357153263,1743802258442,-442.166639,0.000496,120]
[357153264,1743802258452,-442.166639,0.000496,120]
[357153265,1743802258463,-1053.342937,0.000496,120]
[357153266,1743802258473,-151.0,0.000496,120]
[357153267,1743802258482,-1053.342937,0.000496,120]
[357153268,1743802258492,-1576.280015,0.000496,120]
[357153269,1743802258501,-1576.280015,0.000496,120]
[357153270,1743802258511,-150.34,0.00049609,120]
[357153271,1743802258520,-1000.0,0.00049631,30]
[357153272,1743802258530,-5000.0,0.00049647,30]
[357153273,1743802258539,-150.0,0.00049651,7]
[357153274,1743802258550,-1000.0,0.00049653,30]
[357153275,1743802258559,-150.0,0.00049667,7]
[357153276,1743802258569,-150.0,0.00049679,7]
[357153277,1743802258579,-150.0,0.00049683,7]
[357153278,1743802258589,-5000.0,0.00049688,30]
[357153279,1743802258599,-300.0,0.000497,18]
[357153280,1743802258679,-150.0,0.00049704,7]
[357153281,1743802258696,-150.0,0.0004971,7]
[357153282,1743802258705,-5000.0,0.00049712,30]
[357153283,1743802258714,-150.0,0.00049719,7]
[357153284,1743802258724,-5000.0,0.00049725,30]
[357153285,1743802258734,-150.0,0.00049732,7]
[357153286,1743802258744,-150.0,0.00049733,7]
[357153287,1743802258754,-5000.0,0.00049735,30]
[357153288,1743802258763,-150.0,0.00049743,7]
[357153289,1743802258773,-1379.77,0.00049746,30]
[357153290,1743802258783,-784.07,0.00049753,30]
[357153291,1743802258792,-444.76,0.00049753,30]
[357153292,1743802258802,-444.76,0.00049753,30]
[357153293,1743802258811,-444.76,0.00049753,30]
[357153294,1743802258821,-3063.73,0.00049755,30]
[357153295,1743802258830,-4443.93,0.00049766,30]
[357153296,1743802258840,-5000.0,0.00049771,30]
[357153297,1743802258849,-20669.65,0.00049776,30]
[357153298,1743802258858,-150.0,0.00049776,7]
[357153299,1743802258868,-3896.57157165,0.0004979,120]
[357153300,1743802258878,-150.0,0.00049794,7]
[357153301,1743802258888,-150.0,0.00049798,7]
[357153302,1743802258898,-500.0,0.00049799,120]
[357153303,1743802258907,-149945.07629804,0.000498,30]
[357153304,1743802258918,-300.0,0.000498,18]
[357153305,1743802258928,-150.0,0.00049818,7]
[357153306,1743802258938,-150.0,0.0004983,7]
[357153307,1743802258948,-2642.44,0.00049833,30]
[357153308,1743802258957,-5000.0,0.0004985,30]
[357153309,1743802258968,-150.0,0.00049858,7]
[357153310,1743802258977,-150.0,0.00049859,7]
[357153311,1743802258987,-500.0,0.00049863,16]
[357153312,1743802258997,-616.82,0.00049863,120]